fUSD/lending_fUSD_20250629
["ID","MTS","AMOUNT","RATE_DAILY","PERIOD"]
[368391354,1751155882499,-490.0,0.0003041,9]
[368391355,1751155882508,-967.51,0.0003041,9]
[368391356,1751155882518,-353.23145513,0.0003041,9]
[368391357,1751155882527,-490.0,0.0003041,9]
[368391358,1751155882536,-490.0,0.0003041,2]
[368391359,1751155882546,-490.0,0.0003041,9]
[368391360,1751155882555,-490.0,0.0003041,9]
[368391361,1751155882564,-280.67797023,0.0003041,9]
[368391362,1751155882574,-492.58648523,0.0003041,9]
[368391363,1751155882583,-410.07179459,0.0003041,9]
[368391364,1751155882592,-490.0,0.0003041,9]
[368391365,1751155882601,-490.0,0.0003041,9]
[368391366,1751155882610,-151.0,0.0003041,7]
[368391367,1751155882619,-490.0,0.0003041,9]
[368391368,1751155882628,-904.77,0.0003041,9]
[368391369,1751155882637,-490.0,0.0003041,9]
[368391370,1751155882647,-490.0,0.0003041,9]
[368391371,1751155882656,-490.0,0.0003041,9]
[368391372,1751155882665,-493.11983667,0.0003041,9]
[368391373,1751155882674,-588.05,0.0003041,9]
[368391374,1751155882683,-490.0,0.0003041,9]
[368391375,1751155882692,-490.0,0.0003041,9]
[368391376,1751155882701,-490.0,0.0003041,9]
[368391377,1751155882710,-490.0,0.0003041,9]
[368391378,1751155882719,-490.0,0.0003041,9]
[368391379,1751155882730,-490.0,0.0003041,9]
[368391380,1751155882739,-1258.53,0.0003041,9]
[368391381,1751155882749,-421.39846089,0.0003041,9]
[368391382,1751155882758,-490.0,0.0003041,9]
[368391383,1751155882767,-490.0,0.0003041,9]
[368391384,1751155882778,-321.084865,0.0003041,7]
[368391385,1751155882787,-1607.85,0.0003041,9]
[368391386,1751155882797,-263.417955,0.0003041,7]
[368391387,1751155882808,-263.417955,0.0003041,7]
[368391388,1751155882818,-490.0,0.0003041,9]
[368391389,1751155882827,-321.084874,0.0003041,7]
[368391390,1751155882836,-490.0,0.0003041,9]
[368391391,1751155882846,-666.97,0.0003041,9]
[368391392,1751155882855,-445.50962594,0.0003041,9]
[368391393,1751155882864,-490.0,0.0003041,9]
[368391394,1751155882874,-490.0,0.0003041,9]
[368391395,1751155882883,-490.0,0.0003041,9]
[368391396,1751155882892,-263.417955,0.0003041,7]
[368391397,1751155882902,-263.417963,0.0003041,7]
[368391398,1751155882911,-486.96350292,0.0003041,9]
[368391399,1751155882920,-490.0,0.0003041,9]
[368391400,1751155882929,-798.16,0.0003041,9]
[368391401,1751155882939,-598.55,0.0003041,9]
[368391402,1751155882948,-490.0,0.0003041,9]
[368391403,1751155882958,-490.0,0.0003041,9]
[368391404,1751155882967,-505.78,0.0003041,9]
[368391405,1751155882976,-490.0,0.0003041,9]
[368391406,1751155882986,-490.0,0.0003041,9]
[368391407,1751155882996,-490.0,0.0003041,9]
[368391408,1751155883006,-486.7780146,0.0003041,9]
[368391409,1751155883017,-490.0,0.0003041,9]
[368391410,1751155883026,-490.0,0.0003041,9]
[368391411,1751155883036,-490.0,0.0003041,9]
[368391412,1751155883046,-490.0,0.0003041,9]
[368391413,1751155883055,-490.0,0.0003041,9]
[368391414,1751155883065,-490.0,0.0003041,9]
[368391415,1751155883074,-490.0,0.0003041,9]
[368391416,1751155883084,-490.0,0.0003041,9]
[368391417,1751155883094,-490.0,0.0003041,9]
[368391418,1751155883103,-490.0,0.0003041,9]
[368391419,1751155883112,-490.0,0.0003041,9]
[368391420,1751155883122,-644.39,0.0003041,9]
[368391421,1751155883131,-490.0,0.0003041,9]
[368391422,1751155883140,-391.638663,0.0003041,7]
[368391423,1751155883149,-490.0,0.0003041,9]
[368391424,1751155883159,-490.0,0.0003041,9]
[368391425,1751155883168,-391.638663,0.0003041,7]
[368391426,1751155883177,-490.0,0.0003041,9]
[368391427,1751155883187,-490.0,0.0003041,9]
[368391428,1751155883196,-490.0,0.0003041,9]
[368391429,1751155883205,-490.0,0.0003041,9]
[368391430,1751155883215,-391.638663,0.0003041,7]
[368391431,1751155883224,-391.638668,0.0003041,7]
[368391432,1751155883234,-1012.36,0.0003041,9]
[368391433,1751155883243,-490.0,0.0003041,9]
[368391434,1751155883252,-819.33,0.0003041,9]
[368391435,1751155883261,-151.0,0.0003041,7]
[368391436,1751155883271,-490.0,0.0003041,9]
[368391437,1751155883280,-490.0,0.0003041,9]
[368391438,1751155883290,-490.0,0.0003041,9]
[368391439,1751155883300,-490.0,0.0003041,9]
[368391440,1751155883309,-490.0,0.0003041,9]
[368391441,1751155883318,-623.88,0.0003041,9]
[368391442,1751155883327,-785.44,0.0003041,9]
[368391443,1751155883336,-946.28,0.0003041,9]
[368391444,1751155883345,-490.0,0.0003041,9]
[368391445,1751155883355,-509.55,0.0003041,9]
[368391446,1751155883365,-490.0,0.0003041,9]
[368391447,1751155883374,-490.0,0.0003041,9]
[368391448,1751155883384,-490.0,0.0003041,5]
[368391449,1751155883393,-936.08,0.0003041,9]
[368391450,1751155883402,-490.0,0.0003041,9]
[368391451,1751155883412,-151.0,0.0003041,7]
[368391452,1751155883421,-151.0,0.0003041,7]
[368391453,1751155883430,-490.0,0.0003041,9]
[368391454,1751155883439,-209.54278176,0.0003041,9]
[368391455,1751155883448,-490.0,0.0003041,9]
[368391456,1751155883458,-490.0,0.0003041,9]
[368391457,1751155883467,-491.8867782,0.0003041,9]
[368391458,1751155883476,-707.02,0.0003041,9]
[368391459,1751155883485,-508.02,0.0003041,9]
[368391460,1751155883494,-490.0,0.0003041,9]
[368391461,1751155883504,-490.0,0.0003041,9]
[368391462,1751155883513,-490.0,0.0003041,9]
[368391463,1751155883523,-490.0,0.0003041,9]
[368391464,1751155883532,-657.49,0.0003041,9]
[368391465,1751155883541,-156.856493,0.0003041,7]
[368391466,1751155883550,-490.0,0.0003041,9]
[368391467,1751155883559,-490.0,0.0003041,9]
[368391468,1751155883568,-490.0,0.0003041,9]
[368391469,1751155883578,-490.0,0.0003041,9]
[368391470,1751155883587,-1009.44,0.0003041,9]
[368391471,1751155883596,-490.0,0.0003041,9]
[368391472,1751155883605,-490.0,0.0003041,9]
[368391473,1751155883614,-490.0,0.0003041,9]
[368391474,1751155883624,-490.0,0.0003041,9]
[368391475,1751155883633,-490.0,0.0003041,9]
[368391476,1751155883643,-1098.23,0.0003041,9]
[368391477,1751155883652,-684.29,0.0003041,9]
[368391478,1751155883661,-490.0,0.0003041,9]
[368391479,1751155883670,-523.54,0.0003041,9]
[368391480,1751155883679,-490.0,0.0003041,2]
[368391481,1751155883689,-490.0,0.0003041,9]
[368391482,1751155883699,-665.57,0.0003041,9]
[368391483,1751155883708,-493.04230132,0.0003041,3]
[368391484,1751155883718,-490.0,0.0003041,9]
[368391485,1751155883728,-1206.07,0.0003041,9]
[368391486,1751155883739,-827.94,0.0003041,9]
[368391487,1751155883748,-490.0,0.0003041,9]
[368391488,1751155883757,-513.0,0.0003041,9]
[368391489,1751155883767,-732.12,0.0003041,9]
[368391490,1751155883776,-490.0,0.0003041,9]
[368391491,1751155883786,-956.69,0.0003041,9]
[368391492,1751155883795,-490.0,0.0003041,9]
[368391493,1751155883805,-490.0,0.0003041,9]
[368391494,1751155883814,-490.0,0.0003041,9]
[368391495,1751155884026,-950.92,0.0003041,9]
[368391496,1751155884065,-490.0,0.0003041,9]
[368391497,1751155884075,-490.0,0.0003041,9]
[368391498,1751155884084,-759.56,0.0003041,9]
[368391499,1751155884094,-490.0,0.0003041,9]
[368391500,1751155884105,-490.0,0.0003041,9]
[368391501,1751155884114,-490.0,0.0003041,9]
[368391502,1751155884124,-490.0,0.0003041,9]
[368391503,1751155884134,-529.97,0.0003041,9]
[368391504,1751155884143,-595.16,0.0003041,9]
[368391505,1751155884154,-490.0,0.0003041,9]
[368391506,1751155884167,-603.48,0.0003041,9]
[368391507,1751155884177,-490.0,0.0003041,9]
[368391508,1751155884187,-490.0,0.0003041,9]
[368391509,1751155884197,-490.0,0.0003041,9]
[368391510,1751155884207,-490.0,0.0003041,9]
[368391511,1751155884216,-574.3,0.0003041,9]
[368391512,1751155884225,-490.0,0.0003041,9]
[368391513,1751155884235,-490.0,0.0003041,9]
[368391514,1751155884244,-490.0,0.0003041,9]
[368391515,1751155884253,-490.0,0.0003041,9]
[368391516,1751155884262,-944.3,0.0003041,9]
[368391517,1751155884272,-490.0,0.0003041,9]
[368391518,1751155884281,-1644.28,0.0003041,9]
[368391519,1751155884291,-490.0,0.0003041,9]
[368391520,1751155884300,-490.0,0.0003041,9]
[368391521,1751155884310,-490.0,0.0003041,9]
[368391522,1751155884319,-151.0,0.0003041,7]
[368391523,1751155884328,-490.0,0.0003041,9]
[368391524,1751155884337,-490.0,0.0003041,9]
[368391525,1751155884347,-231.9917797,0.0003041,9]
[368391526,1751155884357,-490.0,0.0003041,9]
[368391527,1751155884367,-490.0,0.0003041,9]
[368391528,1751155884376,-490.0,0.0003041,9]
[368391529,1751155884386,-304.89566667,0.0003041,9]
[368391530,1751155884395,-490.0,0.0003041,9]
[368391531,1751155884405,-490.0,0.0003041,9]
[368391532,1751155884414,-490.0,0.0003041,9]
[368391533,1751155884423,-490.0,0.0003041,9]
[368391534,1751155884433,-490.0,0.0003041,9]
[368391535,1751155884442,-490.0,0.0003041,9]
[368391536,1751155884451,-490.0,0.0003041,9]
[368391537,1751155884461,-490.0,0.0003041,9]
[368391538,1751155884470,-490.0,0.0003041,9]
[368391539,1751155884480,-299.122273,0.0003041,7]
[368391540,1751155884490,-860.11,0.0003041,9]
[368391541,1751155884499,-490.0,0.0003041,9]
[368391542,1751155884509,-490.0,0.0003041,9]
[368391543,1751155884518,-490.0,0.0003041,9]
[368391544,1751155884528,-490.0,0.0003041,9]
[368391545,1751155884537,-491.3,0.0003041,9]
[368391546,1751155884547,-490.0,0.0003041,9]
[368391547,1751155884556,-299.122274,0.0003041,7]
[368391548,1751155884565,-490.0,0.0003041,9]
[368391549,1751155884575,-490.0,0.0003041,9]
[368391550,1751155884584,-490.0,0.0003041,9]
[368391551,1751155884594,-650.01,0.0003041,9]
[368391552,1751155884604,-490.0,0.0003041,9]
[368391553,1751155884613,-1709.06,0.0003041,9]
[368391554,1751155884622,-490.0,0.0003041,9]
[368391555,1751155884632,-490.0,0.0003041,9]
[368391556,1751155884641,-292.92556925,0.0003041,9]
[368391557,1751155884651,-490.0,0.0003041,9]
[368391558,1751155884660,-490.0,0.0003041,9]
[368391559,1751155884670,-490.0,0.0003041,9]
[368391560,1751155884680,-490.0,0.0003041,9]
[368391561,1751155884690,-490.0,0.0003041,9]
[368391562,1751155884699,-492.11,0.0003041,9]
[368391563,1751155884709,-813.34,0.0003041,9]
[368391564,1751155884718,-490.0,0.0003041,9]
[368391565,1751155884729,-1221.82,0.0003041,9]
[368391566,1751155884740,-490.0,0.0003041,9]
[368391567,1751155884750,-490.0,0.0003041,9]
[368391568,1751155884759,-2167.2,0.0003041,9]
[368391569,1751155884768,-490.0,0.0003041,9]
[368391570,1751155884780,-1147.41,0.0003041,9]
[368391571,1751155884790,-1341.48,0.0003041,9]
[368391572,1751155884800,-1315.12,0.0003041,9]
[368391573,1751155884810,-490.0,0.0003041,9]
[368391574,1751155884819,-596.95,0.0003041,9]
[368391575,1751155884830,-490.0,0.0003041,9]
[368391576,1751155884839,-573.16,0.0003041,9]
[368391577,1751155884849,-490.0,0.0003041,9]
[368391578,1751155884859,-490.0,0.0003041,9]
[368391579,1751155884868,-490.0,0.0003041,9]
[368391580,1751155884878,-490.0,0.0003041,9]
[368391581,1751155884888,-490.0,0.0003041,9]
[368391582,1751155884898,-490.0,0.0003041,9]
[368391583,1751155884908,-560.46685031,0.0003041,9]
[368391584,1751155884918,-490.0,0.0003041,9]
[368391585,1751155884928,-490.0,0.0003041,9]
[368391586,1751155884937,-2938.43,0.0003041,9]
[368391587,1751155884948,-490.0,0.0003041,9]
[368391588,1751155884958,-490.0,0.0003041,9]
[368391589,1751155884968,-490.0,0.0003041,9]
[368391590,1751155884978,-732.81,0.0003041,9]
[368391591,1751155884987,-490.0,0.0003041,9]
[368391592,1751155884997,-1183.55,0.0003041,9]
[368391593,1751155885007,-221.84095884,0.0003041,9]
[368391594,1751155885017,-599.4865153,0.0003041,9]
[368391595,1751155885027,-490.0,0.0003041,9]
[368391596,1751155885037,-627.67,0.0003041,9]
[368391597,1751155885047,-953.62,0.0003041,9]
[368391598,1751155885056,-490.0,0.0003041,9]
[368391599,1751155885066,-490.0,0.0003041,9]
[368391600,1751155885075,-490.0,0.0003041,9]
[368391601,1751155885085,-490.0,0.0003041,9]
[368391602,1751155885094,-490.0,0.0003041,9]
[368391603,1751155885104,-490.0,0.0003041,9]
[368391604,1751155885114,-490.0,0.0003041,9]
[368391605,1751155885124,-490.0,0.0003041,9]
[368391606,1751155885133,-490.0,0.0003041,9]
[368391607,1751155885142,-490.0,0.0003041,9]
[368391608,1751155885152,-638.37,0.0003041,9]
[368391609,1751155885161,-490.0,0.0003041,9]
[368391610,1751155885170,-490.0,0.0003041,9]
[368391611,1751155885179,-490.0,0.0003041,9]
[368391612,1751155885189,-490.0,0.0003041,9]
[368391613,1751155885198,-490.0,0.0003041,9]
[368391614,1751155885208,-490.0,0.0003041,9]
[368391615,1751155885217,-490.0,0.0003041,9]
[368391616,1751155885226,-490.0,0.0003041,9]
[368391617,1751155885235,-490.0,0.0003041,9]
[368391618,1751155885245,-1401.76,0.0003041,9]
[368391619,1751155885254,-490.0,0.0003041,9]
[368391620,1751155885263,-866.64,0.0003041,9]
[368391621,1751155885273,-490.0,0.0003041,9]
[368391622,1751155885283,-362.92657566,0.0003041,9]
[368391623,1751155885292,-490.0,0.0003041,9]
[368391624,1751155885305,-490.0,0.0003041,9]
[368391625,1751155885315,-577.97,0.0003041,9]
[368391626,1751155885326,-490.0,0.0003041,9]
[368391627,1751155885336,-1331.31,0.0003041,9]
[368391628,1751155885345,-454.73194692,0.0003041,9]
[368391629,1751155885354,-490.0,0.0003041,9]
[368391630,1751155885364,-1600.09,0.0003041,9]
[368391631,1751155885373,-490.0,0.0003041,9]
[368391632,1751155885383,-490.0,0.0003041,9]
[368391633,1751155885392,-543.8,0.0003041,9]
[368391634,1751155885401,-490.0,0.0003041,9]
[368391635,1751155885410,-490.0,0.0003041,9]
[368391636,1751155885420,-490.0,0.0003041,9]
[368391637,1751155885430,-490.0,0.0003041,9]
[368391638,1751155885439,-490.0,0.0003041,9]
[368391639,1751155885449,-2295.18,0.0003041,9]
[368391640,1751155885459,-490.0,0.0003041,9]
[368391641,1751155885468,-490.0,0.0003041,9]
[368391642,1751155885477,-490.0,0.0003041,9]
[368391643,1751155885486,-830.2,0.0003041,9]
[368391644,1751155885496,-1696.99,0.0003041,9]
[368391645,1751155885505,-490.0,0.0003041,9]
[368391646,1751155885514,-490.0,0.0003041,9]
[368391647,1751155885525,-490.0,0.0003041,9]
[368391648,1751155885535,-490.0,0.0003041,9]
[368391649,1751155885545,-490.0,0.0003041,9]
[368391650,1751155885554,-490.0,0.0003041,9]
[368391651,1751155885564,-490.0,0.0003041,7]
[368391652,1751155885573,-493.77662917,0.0003041,9]
[368391653,1751155885582,-1050.33,0.0003041,9]
[368391654,1751155885592,-1072.33,0.0003041,9]
[368391655,1751155885601,-1160.85,0.0003041,9]
[368391656,1751155885611,-490.0,0.0003041,9]
[368391657,1751155885620,-490.0,0.0003041,9]
[368391658,1751155885629,-1812.63,0.0003041,9]
[368391659,1751155885638,-490.0,0.0003041,9]
[368391660,1751155885648,-490.0,0.0003041,9]
[368391661,1751155885658,-490.0,0.0003041,9]
[368391662,1751155885667,-1544.0,0.0003041,9]
[368391663,1751155885678,-490.0,0.0003041,9]
[368391664,1751155885688,-490.0,0.0003041,9]
[368391665,1751155885697,-490.0,0.0003041,9]
[368391666,1751155885706,-490.0,0.0003041,9]
[368391667,1751155885716,-490.0,0.0003041,9]
[368391668,1751155885725,-490.0,0.0003041,9]
[368391669,1751155885737,-490.0,0.0003041,9]
[368391670,1751155885746,-1046.69,0.0003041,9]
[368391671,1751155885755,-490.0,0.0003041,9]
[368391672,1751155885765,-490.0,0.0003041,9]
[368391673,1751155885775,-490.0,0.0003041,9]
[368391674,1751155885784,-490.0,0.0003041,9]
[368391675,1751155885794,-2619.4,0.0003041,9]
[368391676,1751155885803,-490.0,0.0003041,9]
[368391677,1751155885813,-1880.51,0.0003041,9]
[368391678,1751155885823,-229.88303151,0.0003041,9]
[368391679,1751155885832,-490.0,0.0003041,9]
[368391680,1751155885842,-490.0,0.0003041,9]
[368391681,1751155885852,-973.35,0.0003041,9]
[368391682,1751155885862,-490.0,0.0003041,9]
[368391683,1751155885872,-636.21,0.0003041,9]
[368391684,1751155885883,-490.0,0.0003041,9]
[368391685,1751155885892,-490.0,0.0003041,9]
[368391686,1751155885902,-658.03,0.0003041,9]
[368391687,1751155885912,-2669.21,0.0003041,9]
[368391688,1751155885921,-490.0,0.0003041,9]
[368391689,1751155885931,-490.0,0.0003041,9]
[368391690,1751155885940,-490.0,0.0003041,9]
[368391691,1751155885950,-490.0,0.0003041,9]
[368391692,1751155885960,-490.0,0.0003041,9]
[368391693,1751155885971,-770.95,0.0003041,9]
[368391694,1751155885980,-490.0,0.0003041,9]
[368391695,1751155885990,-1264.23,0.0003041,9]
[368391696,1751155886000,-490.0,0.0003041,9]
[368391697,1751155886011,-490.0,0.0003041,9]
[368391698,1751155886021,-471.72525883,0.0003041,9]
[368391699,1751155886031,-490.0,0.0003041,9]
[368391700,1751155886040,-490.0,0.0003041,9]
[368391701,1751155886050,-490.0,0.0003041,9]
[368391702,1751155886060,-490.0,0.0003041,9]
[368391703,1751155886070,-490.0,0.0003041,9]
[368391704,1751155886080,-456.27,0.0003041,9]
[368391705,1751155886089,-1431.2,0.0003041,9]
[368391706,1751155886099,-490.0,0.0003041,9]
[368391707,1751155886109,-2263.91,0.0003041,9]
[368391708,1751155886119,-563.93,0.0003041,9]
[368391709,1751155886128,-490.0,0.0003041,9]
[368391710,1751155886138,-509.15,0.0003041,9]
[368391711,1751155886148,-571.32957458,0.0003041,9]
[368391712,1751155886158,-1188.48,0.0003041,9]
[368391713,1751155886167,-490.0,0.0003041,9]
[368391714,1751155886177,-490.0,0.0003041,9]
[368391715,1751155886186,-850.69,0.0003041,9]
[368391716,1751155886196,-483.77282723,0.0003041,9]
[368391717,1751155886206,-490.0,0.0003041,9]
[368391718,1751155886216,-490.0,0.0003041,9]
[368391719,1751155886225,-491.79,0.0003041,9]
[368391720,1751155886235,-632.93148304,0.0003041,9]
[368391721,1751155886244,-490.0,0.0003041,9]
[368391722,1751155886254,-490.0,0.0003041,9]
[368391723,1751155886263,-490.0,0.0003041,9]
[368391724,1751155886273,-1072.32,0.0003041,9]
[368391725,1751155886283,-490.0,0.0003041,9]
[368391726,1751155886292,-490.0,0.0003041,9]
[368391727,1751155886301,-490.0,0.0003041,9]
[368391728,1751155886311,-1722.81,0.0003041,9]
[368391729,1751155886321,-2122.58,0.0003041,9]
[368391730,1751155886331,-490.0,0.0003041,9]
[368391731,1751155886341,-490.0,0.0003041,9]
[368391732,1751155886351,-490.0,0.0003041,9]
[368391733,1751155886361,-490.0,0.0003041,9]
[368391734,1751155886371,-490.0,0.0003041,9]
[368391735,1751155886380,-613.33,0.0003041,9]
[368391736,1751155886389,-490.0,0.0003041,9]
[368391737,1751155886399,-490.0,0.0003041,9]
[368391738,1751155886408,-587.77,0.0003041,9]
[368391739,1751155886417,-1498.91,0.0003041,9]
[368391740,1751155886427,-2276.28,0.0003041,9]
[368391741,1751155886436,-1392.89,0.0003041,9]
[368391742,1751155886446,-490.0,0.0003041,9]
[368391743,1751155886455,-1117.63,0.0003041,9]
[368391744,1751155886465,-1246.11,0.0003041,9]
[368391745,1751155886475,-650.67,0.0003041,9]
[368391746,1751155886578,-959.94,0.0003041,9]
[368391747,1751155886587,-490.0,0.0003041,9]
[368391748,1751155886596,-1161.28,0.0003041,9]
[368391749,1751155886605,-490.0,0.0003041,9]
[368391750,1751155886616,-490.0,0.0003041,9]
[368391751,1751155886625,-696.67,0.0003041,9]
[368391752,1751155886634,-490.0,0.0003041,7]
[368391753,1751155886643,-490.0,0.0003041,9]
[368391754,1751155886652,-1619.51,0.0003041,9]
[368391755,1751155886661,-695.71,0.0003041,9]
[368391756,1751155886670,-815.59,0.0003041,9]
[368391757,1751155886679,-656.71,0.0003041,9]
[368391758,1751155886688,-490.0,0.0003041,9]
[368391759,1751155886697,-490.0,0.0003041,9]
[368391760,1751155886706,-490.0,0.0003041,9]
[368391761,1751155886715,-1323.81,0.0003041,9]
[368391762,1751155886724,-778.65,0.0003041,9]
[368391763,1751155886738,-490.0,0.0003041,9]
[368391764,1751155886747,-490.0,0.0003041,9]
[368391765,1751155886756,-490.0,0.0003041,9]
[368391766,1751155886765,-1309.16,0.0003041,9]
[368391767,1751155886775,-2395.84,0.0003041,9]
[368391768,1751155886786,-677.91,0.0003041,9]
[368391769,1751155886795,-490.0,0.0003041,9]
[368391770,1751155886804,-481.26961088,0.0003041,9]
[368391771,1751155886814,-1393.62,0.0003041,30]
[368391772,1751155886824,-568.05029933,0.0003041,9]
[368391773,1751155886834,-490.0,0.0003041,9]
[368391774,1751155886843,-490.0,0.0003041,9]
[368391775,1751155886852,-493.98,0.0003041,9]
[368391776,1751155886862,-490.0,0.0003041,9]
[368391777,1751155886871,-171.470751,0.0003041,7]
[368391778,1751155886881,-490.0,0.0003041,9]
[368391779,1751155886891,-1623.42,0.0003041,9]
[368391780,1751155886902,-490.0,0.0003041,9]
[368391781,1751155886913,-490.0,0.0003041,9]
[368391782,1751155886923,-607.61,0.0003041,9]
[368391783,1751155886934,-490.0,0.0003041,9]
[368391784,1751155886944,-664.07,0.0003041,9]
[368391785,1751155886955,-490.0,0.0003041,9]
[368391786,1751155886965,-490.0,0.0003041,9]
[368391787,1751155886975,-490.0,0.0003041,9]
[368391788,1751155886984,-171.470755,0.0003041,7]
[368391789,1751155886994,-490.0,0.0003041,9]
[368391790,1751155887003,-490.0,0.0003041,9]
[368391791,1751155887012,-490.0,0.0003041,9]
[368391792,1751155887022,-1259.04,0.0003041,9]
[368391793,1751155887031,-1289.08,0.0003041,9]
[368391794,1751155887041,-1064.89,0.0003041,9]
[368391795,1751155887050,-490.0,0.0003041,9]
[368391796,1751155887059,-1018.79,0.0003041,9]
[368391797,1751155887068,-490.0,0.0003041,9]
[368391798,1751155887078,-490.0,0.0003041,9]
[368391799,1751155887087,-490.0,0.0003041,9]
[368391800,1751155887096,-502.91,0.0003041,9]
[368391801,1751155887106,-490.0,0.0003041,9]
[368391802,1751155887115,-490.0,0.0003041,9]
[368391803,1751155887125,-1165.22,0.0003041,9]
[368391804,1751155887134,-843.68,0.0003041,9]
[368391805,1751155887144,-1930.31,0.0003041,9]
[368391806,1751155887154,-33.24932756,0.0003041,9]
[368391807,1751155888315,-456.75067244,0.0003041,9]
[368391808,1751155888325,-490.0,0.0003041,9]
[368391809,1751155888335,-491.32,0.0003041,9]
[368391810,1751155888345,-564.29,0.0003041,9]
[368391811,1751155888355,-490.0,0.0003041,9]
[368391812,1751155888366,-490.0,0.0003041,9]
[368391813,1751155888376,-490.0,0.0003041,9]
[368391814,1751155888386,-771.42,0.0003041,9]
[368391815,1751155888395,-490.0,0.0003041,9]
[368391816,1751155888406,-785.15,0.0003041,9]
[368391817,1751155888415,-1569.57,0.0003041,9]
[368391818,1751155888424,-2495.44,0.0003041,9]
[368391819,1751155888434,-490.0,0.0003041,9]
[368391820,1751155888444,-1384.15,0.0003041,9]
[368391821,1751155888454,-490.0,0.0003041,9]
[368391822,1751155888464,-514.98,0.0003041,9]
[368391823,1751155888473,-1394.36,0.0003041,9]
[368391824,1751155888483,-490.0,0.0003041,9]
[368391825,1751155888492,-490.0,0.0003041,9]
[368391826,1751155888502,-490.0,0.0003041,7]
[368391827,1751155888512,-490.0,0.0003041,9]
[368391828,1751155888521,-490.0,0.0003041,9]
[368391829,1751155888531,-224.37086,0.0003041,7]
[368391830,1751155888541,-490.0,0.0003041,9]
[368391831,1751155888553,-490.0,0.0003041,9]
[368391832,1751155888565,-490.0,0.0003041,9]
[368391833,1751155888575,-888.99,0.0003041,9]
[368391834,1751155888584,-490.0,0.0003041,9]
[368391835,1751155888594,-490.0,0.0003041,9]
[368391836,1751155888603,-490.0,0.0003041,9]
[368391837,1751155888613,-619.4,0.0003041,9]
[368391838,1751155888623,-224.37085,0.0003041,7]
[368391839,1751155888634,-734.54,0.0003041,9]
[368391840,1751155888643,-490.0,0.0003041,9]
[368391841,1751155888653,-490.0,0.0003041,9]
[368391842,1751155888663,-888.48,0.0003041,9]
[368391843,1751155888673,-490.0,0.0003041,9]
[368391844,1751155888683,-565.05,0.0003041,9]
[368391845,1751155888692,-490.0,0.0003041,9]
[368391846,1751155888703,-934.08,0.0003041,9]
[368391847,1751155888713,-573.96,0.0003041,9]
[368391848,1751155888723,-490.0,0.0003041,9]
[368391849,1751155888735,-321.53971899,0.0003041,9]
[368391850,1751155888751,-168.46028101,0.0003041,9]
[368391851,1751155888761,-1650.97,0.0003041,9]
[368391852,1751155888771,-2868.0,0.0003041,9]
[368391853,1751155888781,-490.0,0.0003041,9]